bitfinex/quotes_BTCUSD_20250422
["timestamp","ask_amount","ask_price","bid_price","bid_amount"]
[1745328650721,0.11375594,89451.0,89429.0,0.1152]
[1745328651460,0.003,89458.0,89445.0,0.01118005]
[1745328651661,0.003,89458.0,89446.0,0.840615]
[1745328651839,0.003,89458.0,89444.0,0.001]
[1745328651840,0.003,89458.0,89447.0,0.27168]
[1745328652040,0.003,89458.0,89445.0,0.27168]
[1745328652249,0.003,89458.0,89430.0,0.71234855]
[1745328652521,0.11375594,89457.0,89429.0,0.1162]
[1745328652670,0.11375594,89457.0,89433.0,0.22362965]
[1745328652872,0.003,89454.0,89430.0,0.59859261]
[1745328653070,0.11375594,89457.0,89430.0,0.8222296]
[1745328653270,0.11375594,89457.0,89430.0,0.22363699]
[1745328653529,0.11375594,89457.0,89431.0,0.22363446]
[1745328653747,0.11375594,89457.0,89427.0,0.0111823]
[1745328653748,0.01117917,89452.0,89426.0,0.1152]
[1745328653884,0.11375594,89451.0,89427.0,0.99901]
[1745328654519,0.11375594,89451.0,89445.0,0.001]
[1745328654720,0.23477419,89448.0,89445.0,0.001]
[1745328654879,0.01118005,89445.0,89426.0,0.1152]
[1745328655075,0.11375594,89444.0,89426.0,0.1152]
[1745328655304,0.11784,89466.0,89440.0,0.22361249]
[1745328655508,0.11375594,89456.0,89440.0,0.59859261]
[1745328655714,0.11375594,89456.0,89432.0,0.22363179]
[1745328655918,0.01118017,89444.0,89411.0,0.11784]
[1745328656179,0.01118105,89437.0,89426.0,0.001]
[1745328656371,0.2236461,89427.0,89426.0,0.001]
[1745328656549,0.33740204,89427.0,89426.0,0.001]
[1745328657522,0.11375594,89427.0,89426.0,0.001]
[1745328657720,0.11375594,89427.0,89410.0,0.59859261]
[1745328657925,0.11275594,89426.0,89410.0,0.59859261]
[1745328658235,0.33640455,89426.0,89410.0,0.59859261]
[1745328658451,0.01118293,89422.0,89410.0,0.59859261]
[1745328658641,0.0111828,89423.0,89410.0,0.59859261]
[1745328658842,0.23483509,89425.0,89391.0,0.0115868]
[1745328658843,0.22366611,89419.0,89391.0,0.0004]
[1745328659046,0.11375594,89419.0,89400.0,0.59859261]
[1745328659268,0.11375594,89419.0,89391.0,0.0004]
[1745328659269,0.11375594,89419.0,89409.0,0.59859261]
[1745328659640,0.11375594,89419.0,89418.0,0.0016]
[1745328660276,0.12929679,89419.0,89418.0,0.0016]
[1745328660479,0.12929679,89419.0,89391.0,0.0004]
[1745328660480,0.22370864,89402.0,89391.0,0.0004]
[1745328660678,0.35200543,89402.0,89401.0,0.00146188]
[1745328661367,0.33646458,89402.0,89401.0,0.00146188]
[1745328661607,0.11375594,89402.0,89401.0,0.00146188]
[1745328661823,0.0171833,89419.0,89407.0,0.22369507]
[1745328661824,0.001,89419.0,89407.0,0.22369507]
[1745328662002,0.001,89419.0,89418.0,0.42929767]
[1745328662212,0.001,89419.0,89418.0,2.55358067]
[1745328662381,0.007,89419.0,89418.0,2.66733661]
[1745328662582,0.001,89419.0,89418.0,2.66733661]
[1745328662784,0.015,89458.0,89446.0,0.34]
[1745328663044,0.015,89458.0,89443.0,0.22360497]
[1745328663045,0.008,89458.0,89449.0,0.34]
[1745328663373,0.008,89458.0,89457.0,0.34]
[1745328663580,0.007,89458.0,89457.0,2.788472]
[1745328663776,0.00238612,89458.0,89457.0,2.90222794]
[1745328664024,0.0004,89479.0,89457.0,2.90222794]
[1745328664025,0.0004,89479.0,89471.0,0.56353611]
[1745328664298,0.0004,89479.0,89471.0,0.89517205]
[1745328664451,0.00056162,89472.0,89471.0,0.89517205]
[1745328664656,0.00056162,89472.0,89471.0,3.24427005]
[1745328664866,0.00056162,89472.0,89471.0,3.88403905]
[1745328665130,0.08929767,89516.0,89471.0,3.88403905]
[1745328665131,0.0004236,89517.0,89490.0,0.22348865]
[1745328665258,0.0004236,89517.0,89506.0,0.01117243]
[1745328665457,0.0004236,89517.0,89508.0,0.56344371]
[1745328665664,0.0004236,89517.0,89508.0,3.76606665]
[1745328665886,0.00086294,89509.0,89508.0,3.76606665]
[1745328666133,0.00086294,89509.0,89508.0,3.428867]
[1745328666560,0.00086294,89509.0,89508.0,1.338589]
[1745328666788,0.00086294,89509.0,89508.0,0.742075]
[1745328667022,0.00186294,89509.0,89508.0,1.08127465]
[1745328667199,0.00186294,89509.0,89508.0,1.07927465]
[1745328667449,0.00186294,89509.0,89508.0,0.624235]
[1745328667700,0.00286294,89509.0,89508.0,0.002]
[1745328668205,0.00486294,89509.0,89508.0,0.002]
[1745328668460,0.11861888,89509.0,89508.0,0.002]
[1745328668832,0.11461888,89509.0,89489.0,0.34]
[1745328669037,0.11375594,89508.0,89489.0,0.34]
[1745328669248,0.01117505,89485.0,89460.0,0.59859261]
[1745328669442,0.01117505,89485.0,89453.0,0.25711642]
[1745328669443,0.0111753,89483.0,89453.0,0.37491642]
[1745328669641,0.12293112,89484.0,89455.0,0.23475477]
[1745328669838,0.01117668,89472.0,89456.0,0.62222]
[1745328670213,0.11375594,89471.0,89442.0,0.01118042]
[1745328670413,0.08929767,89489.0,89435.0,0.34142555]
[1745328670414,0.00835216,89507.0,89460.0,0.59859261]
[1745328670632,0.09029767,89513.0,89454.0,0.01117892]
[1745328670633,0.23467619,89485.0,89470.0,0.59859261]
[1745328670788,0.11375594,89484.0,89461.0,0.34]
[1745328670966,0.01117568,89480.0,89461.0,0.34]
[1745328671185,0.01117568,89480.0,89434.0,0.22362586]
[1745328671186,0.0111773,89467.0,89440.0,0.59859261]
[1745328671397,0.01117805,89461.0,89455.0,0.00013852]
[1745328671598,0.12493399,89461.0,89455.0,0.00313852]
[1745328671838,0.11375594,89461.0,89455.0,0.00313852]
[1745328672006,0.11375594,89460.0,89455.0,0.00013852]
[1745328672214,0.0111783,89459.0,89455.0,0.00013852]
[1745328672409,0.12493437,89458.0,89455.0,0.00013852]
[1745328672624,0.11375594,89458.0,89455.0,0.00013852]
[1745328673038,0.005,89460.0,89455.0,0.00013852]
[1745328673482,0.0111783,89459.0,89455.0,0.00013852]
[1745328673666,0.01117805,89461.0,89455.0,0.00013852]
[1745328673667,0.005,89458.0,89455.0,0.00013852]
[1745328674174,0.33732704,89457.0,89455.0,0.00013852]
[1745328674596,0.01454085,89456.0,89455.0,0.00013852]
[1745328674733,0.23483494,89425.0,89418.0,0.001]
[1745328674934,0.11375594,89424.0,89418.0,0.001]
[1745328675560,0.23480413,89437.0,89418.0,0.001]
[1745328675561,0.60659261,89460.0,89418.0,0.001]
[1745328675788,0.004,89425.0,89421.0,0.0014]
[1745328675987,0.01118268,89424.0,89421.0,0.0014]
[1745328676190,0.003,89424.0,89421.0,0.0004]
[1745328676733,0.011,89424.0,89423.0,0.34]
[1745328676851,0.011,89424.0,89423.0,2.12147494]
[1745328677050,0.011,89424.0,89423.0,1.56139994]
[1745328677251,0.011,89424.0,89423.0,0.58820494]
[1745328677460,0.008,89424.0,89423.0,0.58820494]
[1745328677654,0.0001387,89450.0,89449.0,0.56359109]
[1745328677865,0.0001387,89450.0,89449.0,2.85959703]
[1745328678088,0.0001387,89450.0,89449.0,0.98864903]
[1745328678509,0.048,89504.0,89488.0,0.01117468]
[1745328678715,0.0466,89515.0,89456.0,0.34]
[1745328678716,0.0466,89515.0,89495.0,0.0111738]
[1745328678924,0.00056165,89503.0,89501.0,0.56345963]
[1745328679126,0.00056165,89503.0,89502.0,2.19764338]
[1745328679324,0.00056165,89503.0,89502.0,2.13603894]
[1745328679524,0.00056165,89503.0,89502.0,0.46829679]
[1745328679769,0.00038525,89517.0,89516.0,0.56342374]
[1745328680037,0.00038525,89517.0,89516.0,1.51609594]
[1745328680212,0.00084782,89517.0,89516.0,0.70102794]
[1745328680448,0.00084782,89517.0,89516.0,0.587272]
[1745328680660,0.00084782,89517.0,89516.0,0.4578]
[1745328680862,0.00084782,89517.0,89516.0,1.453906]
[1745328681074,0.00084782,89517.0,89516.0,0.86329474]
[1745328681492,0.00084782,89517.0,89516.0,0.639871]
[1745328681703,0.00084782,89517.0,89510.0,0.2234372]
[1745328681704,0.00084782,89517.0,89501.0,0.001]
[1745328681921,0.00084782,89517.0,89494.0,0.1178]
[1745328682336,0.12492712,89516.0,89494.0,0.1178]
[1745328682553,0.11375594,89516.0,89494.0,0.1178]
[1745328682761,0.00184782,89517.0,89495.0,0.00223461]
[1745328682960,0.00184782,89517.0,89501.0,0.001]
[1745328682961,0.01117131,89515.0,89501.0,0.001]
[1745328683191,0.00184782,89517.0,89501.0,0.001]
[1745328683398,0.01117268,89504.0,89501.0,0.001]
[1745328683644,0.08929767,89514.0,89439.0,0.151263]
[1745328683645,0.01117705,89469.0,89439.0,0.151263]
[1745328683828,0.01117793,89462.0,89449.0,0.05]
[1745328684040,0.23474011,89461.0,89449.0,0.05]
[1745328684251,0.11375594,89469.0,89449.0,0.05]
[1745328684466,0.0468,89487.0,89459.0,0.60977091]
[1745328684675,0.01117518,89484.0,89461.0,0.34]
[1745328684826,0.0111758,89479.0,89461.0,0.34]
[1745328685032,0.001,89462.0,89455.0,0.0111788]
[1745328685270,0.004,89462.0,89460.0,0.34]
[1745328685610,0.01117443,89490.0,89462.0,0.34]
[1745328685818,0.005,89484.0,89464.0,0.34]
[1745328685943,0.005,89484.0,89465.0,0.11375594]
[1745328686146,0.005,89484.0,89466.0,0.67532]
[1745328686407,0.0151748,89487.0,89468.0,0.34]
[1745328686766,0.01117543,89482.0,89468.0,0.34]
[1745328686992,0.01117505,89485.0,89468.0,0.34]
[1745328687168,0.0111763,89475.0,89460.0,0.001]
[1745328687398,0.01117543,89482.0,89460.0,0.001]
[1745328687399,0.006,89462.0,89460.0,0.001]
[1745328687586,0.011,89462.0,89461.0,0.34]
[1745328687803,0.01117493,89486.0,89461.0,0.34]
[1745328688002,0.01117393,89494.0,89461.0,0.34]
[1745328688003,0.009,89482.0,89468.0,0.001]
[1745328688205,0.009,89482.0,89473.0,0.01117655]
[1745328688328,0.009,89482.0,89481.0,0.34]
[1745328688534,0.007,89485.0,89484.0,0.56350364]
[1745328688732,0.0468,89521.0,89484.0,0.56350364]
[1745328688733,0.0004237,89527.0,89516.0,0.34]
[1745328688939,0.0004237,89527.0,89516.0,1.249729]
[1745328689591,0.01117031,89523.0,89516.0,0.34]
[1745328689766,0.01159373,89526.0,89516.0,0.34]
[1745328689982,0.00184782,89517.0,89510.0,0.34]
[1745328690224,0.00184782,89517.0,89513.0,0.34]
[1745328690753,0.00684782,89517.0,89513.0,0.34]
[1745328691007,0.00584782,89517.0,89513.0,0.34]
[1745328691179,0.00284782,89517.0,89508.0,0.34]
[1745328691386,0.00284782,89517.0,89515.0,0.34]
[1745328691617,0.00284782,89517.0,89516.0,1.289706]
[1745328691822,0.00084782,89517.0,89516.0,1.89924994]
[1745328692022,0.00384782,89517.0,89516.0,1.89924994]
[1745328692384,0.00384782,89517.0,89516.0,0.603095]
[1745328692587,0.00484782,89517.0,89516.0,0.67717968]
[1745328693070,0.00484782,89517.0,89516.0,0.34]
[1745328693530,0.00184782,89517.0,89516.0,0.34]
[1745328693708,0.00584782,89517.0,89516.0,0.341]
[1745328694237,0.00011832,89527.0,89517.0,0.93859261]
[1745328694437,0.00011832,89527.0,89518.0,0.11375594]
[1745328695436,0.00411832,89527.0,89526.0,0.22339878]
[1745328695633,0.00411832,89527.0,89526.0,3.32825528]
[1745328695846,0.000423,89545.0,89538.0,0.22336884]
[1745328696051,0.00096251,89539.0,89538.0,0.4615178]
[1745328696220,0.00096251,89539.0,89538.0,0.23591594]
[1745328696423,0.00096251,89539.0,89538.0,0.12216]
[1745328696980,0.00096251,89539.0,89530.0,0.00223332]
[1745328697182,0.00096251,89539.0,89531.0,0.11375594]
[1745328698078,0.00196251,89539.0,89534.0,0.22337756]
[1745328698288,0.00196251,89539.0,89535.0,0.43508894]
[1745328698501,0.00096251,89539.0,89529.0,0.94414192]
[1745328698703,0.00096251,89539.0,89530.0,1.172251]
[1745328698911,0.00296251,89539.0,89529.0,0.72075261]
[1745328699125,0.00296251,89539.0,89533.0,0.01116906]
[1745328699326,0.00296251,89539.0,89534.0,0.80242394]
[1745328699533,0.00296251,89539.0,89535.0,0.90289823]
[1745328699738,0.00296251,89539.0,89536.0,0.11375594]
[1745328700271,0.00296251,89539.0,89538.0,0.22336884]
[1745328700473,0.00096251,89539.0,89538.0,0.56241894]
[1745328700643,0.00096251,89539.0,89538.0,0.58361694]
[1745328700858,0.00196251,89539.0,89538.0,0.58361694]
[1745328701299,0.000423,89545.0,89544.0,0.56335388]
[1745328701524,0.000423,89545.0,89544.0,1.34315367]
[1745328701754,0.000423,89545.0,89544.0,3.76597682]
[1745328701970,0.000423,89545.0,89544.0,1.04251594]
[1745328702177,0.000423,89545.0,89544.0,0.34]
[1745328702345,0.000423,89545.0,89544.0,0.79007]
[1745328702558,0.000423,89545.0,89544.0,1.456967]
[1745328702773,0.000423,89545.0,89544.0,2.270237]
[1745328702959,0.000423,89545.0,89544.0,1.599018]
[1745328703388,0.000423,89545.0,89544.0,1.64666779]
[1745328703715,0.000423,89545.0,89544.0,1.64166779]
[1745328703920,0.000423,89545.0,89544.0,1.64566779]
[1745328704124,0.000423,89545.0,89544.0,1.74566779]
[1745328704322,0.000423,89545.0,89544.0,1.74166779]
[1745328704537,0.0004227,89563.0,89552.0,0.57887477]
[1745328704727,0.0004227,89563.0,89552.0,3.94851771]
[1745328704927,0.0004227,89563.0,89552.0,3.99951771]
[1745328705156,0.0004227,89563.0,89552.0,3.94851771]
[1745328705395,0.0004227,89563.0,89562.0,0.22330899]
[1745328705549,0.0004227,89563.0,89562.0,3.68047278]
[1745328705768,0.0004227,89563.0,89562.0,3.80359278]
[1745328705934,0.0004227,89563.0,89562.0,3.80259278]
[1745328706130,0.0004227,89563.0,89562.0,3.88805193]
[1745328706380,0.0004227,89563.0,89562.0,3.78805193]
[1745328706751,0.0119123,89564.0,89563.0,0.35454085]
[1745328706954,0.0119123,89564.0,89563.0,3.45716379]
[1745328707589,0.0119123,89564.0,89563.0,3.50716379]
[1745328708362,1e-08,89564.0,89563.0,3.60716379]
[1745328708569,1e-08,89564.0,89563.0,0.61829679]
[1745328708787,1e-08,89564.0,89563.0,0.67583594]
[1745328708977,1e-08,89564.0,89563.0,0.57583594]
[1745328709570,1e-08,89564.0,89563.0,0.23583594]
[1745328709779,1e-08,89564.0,89553.0,0.82192243]
[1745328709780,1e-08,89564.0,89539.0,0.23453287]
[1745328709980,1e-08,89564.0,89552.0,0.1]
[1745328709981,0.08929767,89559.0,89552.0,0.1]
[1745328710256,0.08929767,89559.0,89542.0,0.12208]
[1745328710440,0.08929767,89550.0,89542.0,0.12208]
[1745328710892,0.08729767,89550.0,89542.0,0.12208]
[1745328711395,0.09029767,89559.0,89543.0,0.34]
[1745328711676,0.09029767,89559.0,89542.0,0.12208]
[1745328711677,0.08929767,89559.0,89542.0,0.12208]
[1745328711872,0.15975594,89558.0,89526.0,0.12208]
[1745328712099,0.001,89550.0,89541.0,0.34]
[1745328712312,1e-08,89564.0,89554.0,0.01116644]
[1745328712505,1e-08,89564.0,89563.0,0.34]
[1745328713540,0.002,89559.0,89548.0,0.01116719]
[1745328713849,1e-08,89564.0,89550.0,0.34]
[1745328714081,1e-08,89564.0,89550.0,0.56333882]
[1745328714253,0.00600001,89564.0,89552.0,0.34]
[1745328714595,0.00600001,89564.0,89553.0,0.22332916]
[1745328714596,1e-08,89564.0,89553.0,0.22332916]
[1745328714799,1e-08,89564.0,89552.0,0.34]
[1745328714800,0.003,89559.0,89552.0,0.34]
[1745328715034,0.003,89559.0,89552.0,0.56333187]
[1745328715224,1e-08,89564.0,89552.0,0.56333187]
[1745328715225,1e-08,89564.0,89559.0,0.34]
[1745328715373,0.00400001,89564.0,89563.0,0.56330649]
[1745328715559,0.00400001,89564.0,89563.0,2.35690343]
[1745328715758,0.00400001,89564.0,89563.0,1.41455243]
[1745328716558,1e-08,89564.0,89563.0,1.41455243]
[1745328716803,1e-08,89564.0,89563.0,0.67706243]
[1745328717655,1e-08,89564.0,89563.0,0.74160328]
[1745328718266,0.0004,89569.0,89568.0,0.56329403]
[1745328718506,0.00053866,89569.0,89568.0,3.66591697]
[1745328718671,0.00053866,89569.0,89568.0,2.29109197]
[1745328718869,0.00053866,89569.0,89568.0,1.92947797]
[1745328720475,0.00053866,89569.0,89568.0,1.94401882]
[1745328721731,0.0004231,89577.0,89576.0,0.56327409]
[1745328721943,0.0004231,89577.0,89576.0,0.67703003]
[1745328722145,0.0004231,89577.0,89576.0,3.66589703]
[1745328722625,0.0004231,89577.0,89576.0,1.83067703]
[1745328722993,0.0004231,89577.0,89576.0,1.60740294]
[1745328723193,0.0004231,89577.0,89576.0,0.88276294]
[1745328723571,0.0004231,89577.0,89576.0,0.769007]
[1745328723774,0.0004231,89577.0,89576.0,0.449888]
[1745328723986,0.0004231,89577.0,89576.0,0.33757187]
[1745328724091,0.0004231,89577.0,89576.0,0.68593587]
[1745328724335,0.0004231,89577.0,89576.0,0.33757187]
[1745328724536,0.0004231,89577.0,89576.0,1.18411781]
[1745328725182,0.0004231,89577.0,89576.0,1.13270387]
[1745328725384,0.0004231,89577.0,89576.0,0.46417187]
[1745328725610,0.0004231,89577.0,89576.0,0.57309987]
[1745328725857,0.0004231,89577.0,89576.0,1.28811687]
[1745328726058,0.0004231,89577.0,89576.0,0.57309987]
[1745328726277,0.0004231,89577.0,89576.0,0.33757187]
[1745328728728,0.0004231,89577.0,89576.0,0.56084596]
[1745328729155,0.0004231,89577.0,89576.0,0.33757187]
[1745328730520,0.0004231,89577.0,89566.0,0.22329853]
[1745328730521,0.0014231,89577.0,89555.0,0.01116632]
[1745328730721,0.0014231,89577.0,89544.0,0.01554085]
[1745328730722,0.22328254,89573.0,89560.0,0.00013866]
[1745328730919,0.11375594,89576.0,89560.0,0.00013866]
[1745328731117,0.0014231,89577.0,89560.0,0.00013866]
[1745328731118,0.01116432,89571.0,89560.0,0.00013866]
[1745328731319,0.11375594,89571.0,89560.0,0.00013866]
[1745328732069,0.23446514,89566.0,89560.0,0.00013866]
[1745328732271,0.0956,89561.0,89560.0,0.00013866]
[1745328732472,0.0956,89561.0,89544.0,0.001]
[1745328732473,0.01116657,89553.0,89544.0,0.001]
[1745328732673,0.11375594,89552.0,89544.0,0.001]
[1745328732880,0.01116731,89547.0,89544.0,0.001]
[1745328733093,0.22335059,89546.0,89544.0,0.001]
[1745328733276,0.33710653,89546.0,89544.0,0.001]
[1745328733496,0.11375594,89546.0,89544.0,0.001]
[1745328733617,0.000423,89579.0,89544.0,0.001]
[1745328733846,0.22469521,89577.0,89549.0,0.34]
[1745328734102,0.0476,89561.0,89556.0,0.22282316]
[1745328734388,0.0014231,89577.0,89561.0,0.01116557]
[1745328734581,0.00013859,89573.0,89563.0,0.34]
[1745328734794,0.00013859,89573.0,89564.0,0.00223278]
[1745328735004,0.00013859,89573.0,89572.0,0.34]
[1745328738770,0.00013859,89573.0,89563.0,0.82189792]
[1745328738771,0.00013859,89573.0,89564.0,0.34]
[1745328738969,0.00013859,89573.0,89565.0,0.1]
[1745328739178,0.00013859,89573.0,89564.0,0.34]
[1745328739841,0.00013859,89573.0,89560.0,0.30611257]
[1745328739842,0.11389453,89573.0,89560.0,0.0828]
[1745328740880,0.00013859,89573.0,89572.0,0.34]
[1745328741240,0.00013859,89573.0,89572.0,1.17264094]
[1745328741381,0.00013859,89573.0,89572.0,0.34]
[1745328741784,0.00013859,89573.0,89572.0,1.143567]
[1745328742032,0.00013859,89573.0,89572.0,0.527197]
[1745328742253,0.00013859,89573.0,89572.0,0.627197]
[1745328742863,0.00013859,89573.0,89572.0,0.550413]
[1745328743074,0.00013859,89573.0,89572.0,0.1]
[1745328743295,0.00013859,89573.0,89571.0,0.34]
[1745328744035,0.00013859,89573.0,89563.0,0.56330591]
[1745328744237,0.00013859,89573.0,89563.0,0.34]
[1745328744449,0.00013859,89573.0,89563.0,0.5633059]
[1745328744860,0.00013859,89573.0,89545.0,0.12428]
[1745328744861,0.05916445,89570.0,89545.0,0.12428]
[1745328745017,0.11375594,89569.0,89545.0,0.12428]
[1745328745218,0.11375594,89569.0,89559.0,0.1]
[1745328745392,0.11375594,89569.0,89560.0,0.42]
[1745328746543,0.11375594,89569.0,89560.0,0.08]
[1745328747324,0.10675594,89569.0,89560.0,0.08]
[1745328748578,0.22331015,89562.0,89560.0,0.08]
[1745328748886,0.22333392,89552.0,89551.0,0.001]
[1745328749091,0.52125594,89552.0,89551.0,0.001]
[1745328749454,0.74458986,89552.0,89551.0,0.001]
[1745328749652,0.4075,89552.0,89551.0,0.001]
[1745328751086,0.4075,89552.0,89542.0,0.34]
[1745328751303,0.4075,89552.0,89542.0,0.341]
[1745328751670,0.4075,89552.0,89542.0,0.001]
[1745328752850,0.2344799,89560.0,89542.0,0.001]
[1745328753058,0.11375594,89559.0,89542.0,0.101]
[1745328753299,0.4075,89572.0,89549.0,0.59859261]
[1745328753497,0.11375594,89571.0,89550.0,0.34]
[1745328753858,0.11375594,89571.0,89550.0,0.35116694]
[1745328754068,0.11375594,89571.0,89552.0,0.2344985]
[1745328754311,0.04773859,89573.0,89561.0,0.34]
[1745328754566,0.00013859,89573.0,89560.0,0.59859261]
[1745328754736,0.00013859,89573.0,89561.0,0.34]
[1745328754938,0.0004237,89592.0,89566.0,0.01116495]
[1745328755178,0.0004237,89592.0,89581.0,0.01116308]
[1745328755387,0.0004237,89592.0,89579.0,0.00223242]
[1745328755593,0.0004237,89592.0,89578.0,0.34]
[1745328755782,0.0004237,89592.0,89582.0,0.1]
[1745328756184,0.0004237,89592.0,89583.0,0.1]
[1745328758362,0.22325286,89585.0,89583.0,0.1]
[1745328758584,0.11375594,89584.0,89560.0,0.59859261]
[1745328758752,0.11375594,89584.0,89568.0,0.1]
[1745328759122,0.11375594,89584.0,89569.0,0.1]
[1745328759461,0.12491864,89584.0,89569.0,0.1]
[1745328759603,0.11375594,89584.0,89569.0,0.1]
[1745328759811,0.2232295,89594.0,89570.0,1.96293138]
[1745328760015,0.2232295,89594.0,89570.0,0.59859261]
[1745328760016,0.01158541,89592.0,89570.0,0.59859261]
[1745328760265,0.01116233,89587.0,89570.0,0.59859261]
[1745328760596,0.11375594,89586.0,89569.0,0.1]
[1745328760719,0.0004231,89590.0,89571.0,0.34]
[1745328760951,0.0111627,89584.0,89567.0,0.34]
[1745328761155,0.01116233,89587.0,89567.0,0.34]
[1745328761156,0.11375594,89583.0,89569.0,0.1]
[1745328761622,0.0004231,89590.0,89571.0,0.34]
[1745328762208,0.0004231,89590.0,89571.0,0.341]
[1745328762418,0.22324916,89586.0,89571.0,0.341]
[1745328762615,0.12491852,89585.0,89571.0,0.001]
[1745328762790,0.11075594,89585.0,89571.0,0.001]
[1745328762997,0.11075594,89585.0,89571.0,0.341]
[1745328763426,0.0004231,89590.0,89572.0,0.00223273]
[1745328763643,0.01116208,89589.0,89571.0,0.341]
[1745328763843,0.23440468,89589.0,89571.0,0.341]
[1745328764037,0.23482668,89590.0,89571.0,0.341]
[1745328764269,0.0004231,89590.0,89571.0,0.341]
[1745328765189,0.01158506,89590.0,89571.0,0.341]
[1745328765408,0.0004231,89590.0,89571.0,0.341]
[1745328765564,0.0004231,89590.0,89588.0,0.34]
[1745328765770,0.0004231,89590.0,89589.0,0.56324169]
[1745328765992,0.0004231,89590.0,89589.0,0.34]
[1745328766988,0.0004223,89609.0,89593.0,0.0475]
[1745328767277,0.0004223,89609.0,89604.0,0.56320432]
[1745328767483,0.00056094,89605.0,89604.0,0.34]
[1745328768255,0.00056094,89605.0,89604.0,0.45375594]
[1745328768459,0.00056094,89605.0,89604.0,3.56690294]
[1745328768658,0.00056094,89605.0,89604.0,3.29938794]
[1745328769188,0.00056094,89605.0,89604.0,2.20927594]
[1745328769393,0.0004223,89620.0,89619.0,0.56316696]
[1745328769598,0.00088432,89620.0,89619.0,0.56316696]
[1745328770998,0.01115461,89649.0,89619.0,0.22316447]
[1745328771236,0.11375594,89648.0,89622.0,0.34]
[1745328771444,0.11375594,89648.0,89624.0,0.22315451]
[1745328771618,0.22311189,89642.0,89623.0,0.34]
[1745328771827,0.22312639,89636.0,89623.0,0.34]
[1745328772031,0.11375594,89635.0,89623.0,0.34]
[1745328772535,0.11375594,89635.0,89611.0,0.56318454]
[1745328772880,0.12491229,89635.0,89611.0,0.34]
[1745328773171,0.01115834,89619.0,89590.0,1.01529261]
[1745328773379,0.01115884,89615.0,89601.0,0.1]
[1745328773582,0.11375594,89614.0,89590.0,0.59859261]
[1745328773820,0.11375594,89614.0,89600.0,0.59859261]
[1745328774021,0.01115747,89626.0,89601.0,0.34]
[1745328774141,0.11375594,89625.0,89609.0,0.34]
[1745328774337,0.4186566,89633.0,89614.0,0.01115897]
[1745328774338,0.4075,89633.0,89614.0,0.01115897]
[1745328774714,0.01115448,89650.0,89621.0,0.34]
[1745328774838,0.01115473,89648.0,89621.0,0.34]
[1745328775038,0.22310341,89645.0,89621.0,0.34]
[1745328775240,0.11375594,89644.0,89621.0,0.34]
[1745328775462,0.4075,89675.0,89622.0,0.08929767]
[1745328775669,0.4075,89675.0,89644.0,0.59859261]
[1745328775670,0.0478,89669.0,89644.0,0.59859261]
[1745328775914,0.01115274,89664.0,89644.0,0.59859261]
[1745328776112,0.11375594,89653.0,89644.0,0.59859261]
[1745328776302,0.0004223,89650.0,89644.0,0.59859261]
[1745328776522,0.11375594,89649.0,89644.0,0.59859261]
[1745328776718,0.0004223,89650.0,89644.0,0.59859261]
[1745328776893,0.0004223,89650.0,89647.0,0.34]
[1745328777100,0.00056085,89650.0,89647.0,0.34]
[1745328777323,0.00056085,89650.0,89648.0,0.22309266]
[1745328777580,0.00056085,89650.0,89649.0,0.34]
[1745328777789,0.00056085,89650.0,89649.0,1.785611]
[1745328778559,0.09583081,89675.0,89649.0,1.785611]
[1745328778560,0.09583081,89675.0,89666.0,0.35115249]
[1745328778804,0.09583081,89675.0,89666.0,0.34]
[1745328779222,0.09583081,89675.0,89666.0,0.35115249]
[1745328779657,0.08883081,89675.0,89668.0,0.35115225]
[1745328779891,0.08883081,89675.0,89670.0,0.011152]
[1745328780085,0.08883081,89675.0,89674.0,0.34]
[1745328780256,0.08883081,89675.0,89674.0,0.56303008]
[1745328781137,0.08883081,89675.0,89674.0,0.34]
[1745328781683,0.08883081,89675.0,89670.0,0.3873]
[1745328781859,0.08883081,89675.0,89673.0,0.56303128]
[1745328782488,7e-05,89681.0,89680.0,0.34]
[1745328782692,0.0002085,89681.0,89680.0,3.44262294]
[1745328782939,0.0002085,89681.0,89680.0,1.44380794]
[1745328783144,0.0002085,89681.0,89680.0,1.24738194]
[1745328783353,0.0002085,89681.0,89680.0,0.90895694]
[1745328784120,0.0004223,89704.0,89680.0,0.90895694]
[1745328784121,0.0004223,89704.0,89701.0,0.01114814]
[1745328784342,0.0004223,89704.0,89698.0,0.34]
[1745328785443,0.0004223,89704.0,89691.0,0.01114939]
[1745328785444,0.0004223,89704.0,89676.0,0.12164]
[1745328785445,0.01114901,89694.0,89676.0,0.12164]
[1745328785643,0.0014223,89704.0,89690.0,0.60974212]
[1745328785858,0.0014223,89704.0,89698.0,0.01114852]
[1745328786062,0.0014223,89704.0,89699.0,0.00222942]
[1745328786310,0.0014223,89704.0,89699.0,0.34222942]
[1745328786523,0.0014223,89704.0,89703.0,0.56295798]
[1745328787109,0.0014223,89704.0,89703.0,0.79835392]
[1745328787915,0.0014223,89704.0,89703.0,2.70248492]
[1745328788158,0.0014223,89704.0,89703.0,3.11918492]
[1745328788303,0.0014223,89704.0,89703.0,1.96008192]
[1745328788504,0.0014223,89704.0,89703.0,1.21505392]
[1745328788933,0.0014223,89704.0,89703.0,0.7567]
[1745328789140,0.0014223,89704.0,89703.0,0.97965798]
[1745328789340,0.0014223,89704.0,89703.0,1.09341392]
[1745328789780,0.0014223,89704.0,89703.0,2.34380592]
[1745328789939,0.0014223,89704.0,89703.0,1.54331392]
[1745328790478,0.0014223,89704.0,89703.0,1.22651392]
[1745328791024,0.0014223,89704.0,89703.0,1.34811392]
[1745328791235,0.0014223,89704.0,89703.0,1.21501392]
[1745328791443,0.0014223,89704.0,89703.0,2.74433792]
[1745328791645,0.0014223,89704.0,89703.0,2.81358892]
[1745328791859,0.0014223,89704.0,89703.0,1.21501392]
[1745328792265,0.00781142,89739.0,89714.0,0.01114653]
[1745328792468,0.12489949,89738.0,89713.0,0.34]
[1745328792688,0.11375594,89738.0,89716.0,0.23407046]
[1745328792920,0.23402167,89736.0,89712.0,0.34]
[1745328793163,0.11375594,89735.0,89712.0,0.34]
[1745328793371,0.01114429,89732.0,89712.0,0.34]
[1745328793580,0.12490023,89732.0,89712.0,0.34]
[1745328793733,0.22333171,89739.0,89704.0,0.34]